fUSD/lending_fUSD_20260107
["ID","MTS","AMOUNT","RATE_DAILY","PERIOD"]
[400718264,1767792640300,-5399.3349291,0.00017719,2]
[400718268,1767792640582,-300.0,0.00017719,2]
[400718269,1767792640600,-300.0,0.00017721,2]
[400718270,1767792640609,-300.0,0.00017722,2]
[400718271,1767792640619,-300.0,0.00017723,2]
[400718272,1767792640628,-1000.0,0.00017732,2]
[400718273,1767792640637,-2792.549,0.00017734,2]
[400718274,1767792640646,-237.523,0.00017734,2]
[400718275,1767792640657,-1202.01781127,0.00017738,2]
[400718276,1767792640666,-150.0,0.00017738,2]
[400718277,1767792640675,-300.0,0.00017739,2]
[400718278,1767792640684,-840.404012,0.00017739,2]
[400718279,1767792640693,-300.0,0.00017739,2]
[400718280,1767792640704,-300.0,0.0001774,2]
[400718281,1767792640713,-1000.0,0.00017742,2]
[400718282,1767792640723,-300.0,0.00017743,2]
[400718283,1767792640732,-1000.0,0.00017743,2]
[400718284,1767792640742,-300.0,0.00017744,2]
[400718285,1767792640751,-300.0,0.00017744,2]
[400718286,1767792640760,-5399.3349291,0.00017745,2]
[400718287,1767792640769,-150.0,0.00017745,2]
[400718288,1767792640778,-300.0,0.00017745,2]
[400718289,1767792640787,-1000.0,0.00017749,2]
[400718290,1767792640796,-150.0,0.00017753,2]
[400718291,1767792640806,-1000.0,0.00017755,2]
[400718292,1767792640816,-300.0,0.00017755,2]
[400718293,1767792640825,-300.0,0.00017757,2]
[400718294,1767792640834,-300.0,0.00017758,2]
[400718295,1767792640843,-300.0,0.00017759,2]
[400718296,1767792640852,-300.0,0.0001776,2]
[400718297,1767792640861,-300.0,0.00017762,2]
[400718298,1767792640871,-1000.0,0.00017763,2]
[400718299,1767792640880,-1000.0,0.00017763,2]
[400718300,1767792640889,-1000.0,0.00017763,2]
[400718301,1767792640898,-535.0,0.00017763,2]
[400718302,1767792640907,-1000.0,0.00017765,2]
[400718303,1767792640916,-300.0,0.00017766,2]
[400718304,1767792640926,-150.0,0.00017767,2]
[400718305,1767792640935,-300.0,0.00017767,2]
[400718306,1767792640944,-300.0,0.0001777,2]
[400718307,1767792640954,-5399.3349291,0.00017771,2]
[400718308,1767792640964,-150.0,0.00017773,2]
[400718309,1767792640973,-300.0,0.00017776,2]
[400718310,1767792640983,-1000.0,0.00017777,2]
[400718311,1767792640992,-300.0,0.00017778,2]
[400718312,1767792641002,-300.0,0.0001778,2]
[400718313,1767792641011,-1000.0,0.0001778,2]
[400718314,1767792641021,-1000.0,0.00017787,2]
[400718315,1767792641031,-1000.0,0.0001779,2]
[400718316,1767792641040,-1000.0,0.0001779,2]
[400718317,1767792641049,-1000.0,0.00017792,2]
[400718318,1767792641058,-300.0,0.00017794,2]
[400718319,1767792641067,-1000.0,0.00017795,2]
[400718320,1767792641077,-5399.3349291,0.00017796,2]
[400718321,1767792641086,-300.0,0.00017797,2]
[400718322,1767792641097,-150.0,0.000178,2]
[400718323,1767792641106,-300.0,0.000178,2]
[400718324,1767792641116,-300.0,0.000178,2]
[400718325,1767792641125,-394.2130644,0.000178,2]
[400718326,1767792641134,-150.0,0.00017801,2]
[400718327,1767792641144,-300.0,0.00017803,2]
[400718328,1767792641153,-300.0,0.00017809,2]
[400718329,1767792641162,-300.0,0.00017809,2]
[400718330,1767792641172,-300.0,0.0001781,2]
[400718331,1767792641181,-161.23858714,0.0001781,2]
[400718332,1767792641191,-300.0,0.00017811,2]
[400718333,1767792641201,-300.0,0.00017811,2]
[400718334,1767792641212,-300.0,0.00017812,2]
[400718335,1767792641222,-1000.0,0.00017816,2]
[400718336,1767792641231,-150.0,0.00017817,2]
[400718337,1767792641240,-300.0,0.00017817,2]
[400718338,1767792641249,-300.0,0.00017818,2]
[400718339,1767792641258,-300.0,0.0001782,2]
[400718340,1767792641267,-150.0,0.0001782,2]
[400718341,1767792641277,-1000.0,0.0001782,2]
[400718342,1767792641287,-300.0,0.0001782,2]
[400718343,1767792641297,-300.0,0.0001782,2]
[400718344,1767792641308,-300.0,0.00017821,2]
[400718345,1767792641317,-5399.3349291,0.00017822,2]
[400718346,1767792641328,-150.0,0.00017823,2]
[400718347,1767792641337,-1000.0,0.00017823,2]
[400718348,1767792641347,-1000.0,0.00017824,2]
[400718349,1767792641356,-1000.0,0.00017825,2]
[400718350,1767792641366,-300.0,0.00017827,2]
[400718351,1767792641375,-1000.0,0.00017828,2]
[400718352,1767792641384,-300.0,0.00017829,2]
[400718353,1767792641396,-300.0,0.0001783,2]
[400718354,1767792641406,-300.0,0.0001783,2]
[400718355,1767792641417,-300.0,0.00017831,2]
[400718356,1767792641427,-300.0,0.00017832,2]
[400718357,1767792641436,-300.0,0.00017837,2]
[400718358,1767792641445,-1000.0,0.00017837,2]
[400718359,1767792641455,-300.0,0.00017838,2]
[400718360,1767792641464,-300.0,0.0001784,2]
[400718361,1767792641474,-208.63,0.00017843,2]
[400718362,1767792641484,-1000.0,0.00017845,2]
[400718363,1767792641493,-300.0,0.00017846,2]
[400718364,1767792641502,-300.0,0.00017847,2]
[400718365,1767792641511,-5399.3349291,0.00017848,2]
[400718366,1767792641521,-1000.0,0.0001785,2]
[400718367,1767792641531,-300.0,0.00017851,2]
[400718368,1767792641540,-300.0,0.00017852,2]
[400718369,1767792641550,-300.0,0.00017853,2]
[400718370,1767792641559,-1000.0,0.00017856,2]
[400718371,1767792641568,-150.0,0.00017857,2]
[400718372,1767792641578,-1000.0,0.0001786,2]
[400718373,1767792641587,-300.0,0.00017863,2]
[400718374,1767792641596,-1000.0,0.00017867,2]
[400718375,1767792641605,-300.0,0.0001787,2]
[400718376,1767792641615,-1000.0,0.00017871,2]
[400718377,1767792641624,-535.0,0.00017872,2]
[400718378,1767792641636,-300.0,0.00017872,2]
[400718379,1767792641646,-1000.0,0.00017872,2]
[400718380,1767792641655,-1000.0,0.00017872,2]
[400718381,1767792641665,-300.0,0.00017873,2]
[400718382,1767792641674,-461.04561562,0.00017874,2]
[400718383,1767792641683,-300.0,0.00017874,2]
[400718384,1767792641692,-5399.3349291,0.00017874,2]
[400718385,1767792641702,-150.0,0.00017876,2]
[400718386,1767792641711,-300.0,0.00017878,2]
[400718387,1767792641721,-300.0,0.00017879,2]
[400718388,1767792641730,-300.0,0.00017879,2]
[400718389,1767792641739,-535.0,0.00017879,2]
[400718390,1767792641749,-1000.0,0.00017881,2]
[400718391,1767792641758,-1000.0,0.00017887,2]
[400718392,1767792641767,-300.0,0.00017889,2]
[400718393,1767792641776,-300.0,0.0001789,2]
[400718394,1767792641786,-300.0,0.00017891,2]
[400718395,1767792641795,-150.0,0.00017893,2]
[400718396,1767792641805,-300.0,0.00017894,2]
[400718397,1767792641814,-151.0,0.00017897,2]
[400718398,1767792641823,-300.0,0.00017898,2]
[400718399,1767792641832,-500.0,0.00017899,2]
[400718400,1767792641841,-500.0,0.00017899,2]
[400718401,1767792641851,-500.0,0.00017899,2]
[400718402,1767792641862,-500.0,0.00017899,2]
[400718403,1767792641872,-500.0,0.00017899,2]
[400718404,1767792641883,-500.0,0.00017899,2]
[400718405,1767792641892,-276.34900722,0.00017899,2]
[400718406,1767792641902,-20808.699,0.000179,2]
[400718407,1767792641912,-1000.0,0.000179,2]
[400718408,1767792641921,-1000.0,0.000179,2]
[400718409,1767792641930,-10000.0,0.000179,2]
[400718410,1767792641939,-421.30337875,0.000179,2]
[400718411,1767792641949,-1300.38846157,0.000179,2]
[400718412,1767792641958,-5399.3349291,0.000179,2]
[400718413,1767792641967,-1202.01781127,0.000179,2]
[400718414,1767792641976,-25000.0,0.000179,3]
[400718415,1767792641986,-465.68919574,0.000179,2]
[400718416,1767792641996,-201.99613239,0.000179,3]
[400718417,1767792642006,-3749.06870872,0.000179,2]
[400718418,1767792642015,-374.93987142,0.000179,2]
[400718419,1767792642024,-300.0,0.00017902,2]
[400718420,1767792642035,-535.0,0.00017903,2]
[400718421,1767792642045,-1000.0,0.00017904,2]
[400718422,1767792642055,-300.0,0.00017904,2]
[400718423,1767792642064,-300.0,0.00017906,2]
[400718424,1767792642073,-1000.0,0.00017906,2]
[400718425,1767792642082,-1000.0,0.00017907,2]
[400718426,1767792642091,-300.0,0.00017908,2]
[400718427,1767792642101,-1000.0,0.00017908,2]
[400718428,1767792642111,-1000.0,0.00017909,2]
[400718429,1767792642121,-150.0,0.00017912,2]
[400718430,1767792642132,-1000.0,0.00017916,2]
[400718431,1767792642141,-300.0,0.00017916,2]
[400718432,1767792642151,-1000.0,0.0001792,2]
[400718433,1767792642160,-535.0,0.00017921,2]
[400718434,1767792642171,-300.0,0.00017921,2]
[400718435,1767792642180,-300.0,0.00017922,2]
[400718436,1767792642190,-1000.0,0.00017923,2]
[400718437,1767792642199,-244.77,0.00017925,2]
[400718438,1767792642209,-1000.0,0.00017927,2]
[400718439,1767792642219,-300.0,0.00017928,2]
[400718440,1767792642228,-300.0,0.00017929,2]
[400718441,1767792642238,-300.0,0.0001793,2]
[400718442,1767792642247,-300.0,0.0001793,2]
[400718443,1767792642257,-300.0,0.0001793,2]
[400718444,1767792642267,-300.0,0.00017931,2]
[400718445,1767792642276,-300.0,0.00017932,2]
[400718446,1767792642286,-300.0,0.00017932,2]
[400718447,1767792642295,-1000.0,0.00017933,2]
[400718448,1767792642304,-300.0,0.00017934,2]
[400718449,1767792642314,-300.0,0.00017935,2]
[400718450,1767792642323,-1000.0,0.00017936,2]
[400718451,1767792642331,-150.0,0.00017938,2]
[400718452,1767792642341,-300.0,0.0001794,2]
[400718453,1767792642353,-150.0,0.0001794,2]
[400718454,1767792642363,-500.0,0.00017941,2]
[400718455,1767792642372,-300.0,0.00017941,2]
[400718456,1767792642381,-3421.0996801,0.00017942,2]
[400718457,1767792642390,-162484.9479452,0.00017942,2]
[400718458,1767792642399,-300.0,0.00017943,2]
[400718459,1767792642409,-300.0,0.00017943,2]
[400718460,1767792642418,-300.0,0.00017944,2]
[400718461,1767792642427,-300.0,0.00017944,2]
[400718462,1767792642437,-300.0,0.00017944,2]
[400718463,1767792642447,-1000.0,0.00017949,2]
[400718464,1767792642456,-1000.0,0.0001795,2]
[400718465,1767792642465,-1000.0,0.00017951,2]
[400718466,1767792642475,-1000.0,0.00017953,2]
[400718467,1767792642484,-1000.0,0.00017954,2]
[400718468,1767792642493,-1000.0,0.00017958,2]
[400718469,1767792642504,-300.0,0.00017959,2]
[400718470,1767792642513,-150.0,0.0001796,2]
[400718471,1767792642522,-1000.0,0.00017961,2]
[400718472,1767792642532,-300.0,0.00017962,2]
[400718473,1767792642541,-300.0,0.00017964,2]
[400718474,1767792642551,-300.0,0.00017965,2]
[400718475,1767792642560,-1000.0,0.00017967,2]
[400718476,1767792642570,-300.0,0.00017969,2]
[400718477,1767792642579,-300.0,0.00017972,2]
[400718478,1767792642589,-535.0,0.00017972,2]
[400718479,1767792642598,-150.0,0.00017973,2]
[400718480,1767792642608,-150.0,0.00017974,2]
[400718481,1767792642617,-1000.0,0.00017975,2]
[400718482,1767792642626,-2647.6,0.00017977,2]
[400718483,1767792642636,-300.0,0.00017978,2]
[400718484,1767792642645,-535.0,0.00017979,2]
[400718485,1767792642655,-853.09,0.0001798,2]
[400718486,1767792642665,-1000.0,0.0001798,2]
[400718487,1767792642675,-1000.0,0.00017989,2]
[400718488,1767792642684,-439.88513026,0.0001799,2]
[400718489,1767792642693,-439.88513026,0.0001799,2]
[400718490,1767792642702,-1000.0,0.00017991,2]
[400718491,1767792642711,-1000.0,0.00017992,2]
[400718492,1767792642721,-1000.0,0.00017995,2]
[400718493,1767792642730,-151.0,0.00017997,2]
[400718494,1767792642740,-500.0,0.00017999,2]
[400718495,1767792642749,-500.0,0.00017999,2]
[400718496,1767792642758,-500.0,0.00017999,2]
[400718497,1767792642768,-300.0,0.00017999,2]
[400718498,1767792642777,-300.0,0.00017999,2]
[400718499,1767792642786,-666.0,0.00017999,2]
[400718500,1767792642795,-300.0,0.00017999,2]
[400718501,1767792642804,-666.0,0.00017999,2]
[400718502,1767792642813,-71947.65727416,0.00018,2]
[400718503,1767792642829,-218938.76502428,0.00018,2]
[400718504,1767792642838,-3603.13674707,0.00018,2]
[400718505,1767792642847,-2118450.64207692,0.00018,2]
[400718506,1767792642856,-200.0,0.00018,2]
[400718507,1767792642866,-151.0,0.00018,2]
[400718508,1767792642875,-151.0,0.00018,2]
[400718509,1767792642884,-1000.0,0.00018,2]
[400718510,1767792642892,-1000.0,0.00018,2]
[400718511,1767792642902,-1000.0,0.00018,2]
[400718512,1767792642911,-1000.0,0.00018,2]
[400718513,1767792642920,-1000.0,0.00018,2]
[400718514,1767792642930,-1000.0,0.00018,2]
[400718515,1767792642939,-1000.0,0.00018,2]
[400718516,1767792642948,-1000.0,0.00018,2]
[400718517,1767792642957,-1000.0,0.00018,2]
[400718518,1767792642966,-1000.0,0.00018,2]
[400718519,1767792642975,-1000.0,0.00018,2]
[400718520,1767792642984,-1000.0,0.00018,2]
[400718521,1767792642994,-1000.0,0.00018,2]
[400718522,1767792643003,-1000.0,0.00018,2]
[400718523,1767792643013,-1000.0,0.00018,2]
[400718524,1767792643022,-1000.0,0.00018,2]
[400718525,1767792643033,-1000.0,0.00018,2]
[400718526,1767792643043,-1000.0,0.00018,2]
[400718527,1767792643054,-1000.0,0.00018,2]
[400718528,1767792643064,-1000.0,0.00018,2]
[400718529,1767792643073,-1000.0,0.00018,2]
[400718530,1767792643083,-1000.0,0.00018,2]
[400718531,1767792643093,-1000.0,0.00018,2]
[400718532,1767792643104,-1000.0,0.00018,2]
[400718533,1767792643113,-1000.0,0.00018,2]
[400718534,1767792643123,-1000.0,0.00018,2]
[400718535,1767792643132,-838.60419167,0.00018,2]
[400718536,1767792643141,-3392611.26891991,0.00018,2]
[400718537,1767792643153,-2053.64958982,0.00018,2]
[400718538,1767792643249,-5300.19595435,0.00018,2]
[400718539,1767792643260,-707.82344134,0.00018,2]
[400718540,1767792643273,-111980.73755168,0.00018,2]
[400718541,1767792643284,-335.00823583,0.00018,2]
[400718542,1767792643295,-2098.16310385,0.00018,2]
[400718543,1767792643306,-1513.88525483,0.00018,2]
[400718544,1767792643341,-2631.49842016,0.00018,2]
[400718546,1767792644632,-999.0,0.00018,2]
[400718547,1767792644644,-615.16609532,0.00018,2]
[400718548,1767792644682,-481.77668103,0.00018,2]
[400718550,1767792644694,-258.6914863,0.00018,2]
[400718554,1767792644966,-1.7e-07,0.00018,2]
[400718555,1767792644980,-282597.1158255,0.00018,2]
[400718556,1767792645052,-40932.31453005,0.00018,2]
[400718557,1767792645066,-14149.75635146,0.00018,2]
[400718558,1767792645077,-4979.76509798,0.00018,2]
[400718559,1767792645088,-1670.25,0.00018,2]
[400718560,1767792645102,-590.9981233,0.00018,2]
[400718561,1767792645113,-525.16036174,0.00018,2]
[400718562,1767792645143,-447.45880504,0.00018,2]
[400718563,1767792645155,-3709.6,0.00018,2]
[400718564,1767792645166,-359.34614479,0.00018,2]
[400718565,1767792645178,-1091.566251,0.00018,2]
[400718578,1767792649442,-500.0,0.00016768,2]
[400718579,1767792649452,-1552.47803812,0.00018,2]
[400718580,1767792650751,-500.0,0.00017042,2]
[400718581,1767792650761,-500.0,0.00017316,2]
[400718582,1767792650770,-500.0,0.0001759,2]
[400718583,1767792650779,-22620.50890138,0.00018,2]
[400718584,1767792650854,-1070.16111803,0.00018,2]
[400718585,1767792650939,-3555438.96978338,0.00018,2]
[400718586,1767792651681,-690019.69876266,0.00018,2]
[400718597,1767792732533,700.0,0.00032877,120]
[400718598,1767792779008,196.1,0.00032877,120]
[400718609,1767792817695,-500.0,0.00015808,2]
[400718610,1767792817718,-500.0,0.00015808,2]
[400718611,1767792817741,-500.0,0.00015808,2]
[400718612,1767792817764,-300.0,0.00015808,2]
[400718613,1767792817788,-300.0,0.00015808,2]
[400718614,1767792817814,-500.0,0.00015808,2]
[400718615,1767792817839,-500.0,0.00015808,2]
[400718616,1767792817863,-500.0,0.00015808,2]
[400718617,1767792817888,-500.0,0.00015808,2]
[400718618,1767792817912,-500.0,0.00015808,2]
[400718619,1767792817937,-500.0,0.00015808,2]
[400718620,1767792817962,-500.0,0.00015808,2]
[400718621,1767792817987,-500.0,0.00015808,2]
[400718622,1767792818012,-500.0,0.00015808,2]
[400718623,1767792818036,-500.0,0.00015808,2]
[400718624,1767792818062,-500.0,0.00015808,2]
[400718625,1767792818088,-500.0,0.00015808,2]
[400718626,1767792818114,-500.0,0.00015808,2]
[400718627,1767792818140,-500.0,0.00015808,2]
[400718628,1767792818166,-393.21725461,0.00015808,2]
[400718629,1767792818192,-500.0,0.00015808,2]
[400718630,1767792818218,-500.0,0.00015808,2]
[400718631,1767792818245,-500.0,0.00015808,2]
[400718632,1767792818271,-500.0,0.00015808,2]
[400718633,1767792818298,-500.0,0.00015808,2]
[400718634,1767792818324,-500.0,0.00015808,2]
[400718635,1767792818351,-500.0,0.00015808,2]
[400718636,1767792818379,-500.0,0.00015808,2]
[400718637,1767792818413,-500.0,0.00015808,2]
[400718638,1767792818440,-500.0,0.00015808,2]
[400718639,1767792818467,-500.0,0.00015808,2]
[400718640,1767792818494,-500.0,0.00015808,2]
[400718641,1767792818522,-500.0,0.00015808,2]
[400718642,1767792818564,-500.0,0.00015808,2]
[400718643,1767792818592,-500.0,0.00015808,2]
[400718644,1767792818622,-250.0,0.00015808,2]
[400718645,1767792818650,-982756.78274539,0.00015809,2]
[400718646,1767792823237,-17243.21725461,0.00015809,2]
[400718647,1767792823260,-20659.25271932,0.00015995,2]
[400718648,1767792823504,746.229781,0.00015728,2]
[400718651,1767793004429,-1818.24,0.00015672,2]
[400718652,1767793034392,298.4562,0.00015708,2]
[400718653,1767793042653,5659.93,0.00015637,2]
[400718654,1767793211104,171.18,0.00012526,2]
[400718655,1767793267914,233.9638,7.824e-05,2]
[400718656,1767793267938,1939.8562,7.824e-05,2]
[400718657,1767793268131,2173.82,8.236e-05,2]
[400718658,1767793268282,2173.82,8.648e-05,2]
[400718659,1767793268843,2173.82,9.059e-05,2]
[400718660,1767793268915,-300.0,0.00015829,2]
[400718661,1767793269129,2173.82,9.471e-05,2]
[400718662,1767793269418,2173.82,9.883e-05,2]
[400718663,1767793269552,2173.82,0.00010295,2]
[400718664,1767793269786,2173.82,0.00010707,2]
[400718665,1767793270377,704.73,0.00011118,2]
[400718666,1767793270401,1469.09,0.00011118,2]
[400718667,1767793270591,2173.82,0.0001153,2]
[400718668,1767793270775,2173.82,0.00011942,2]
[400718669,1767793270960,2173.82,0.00012354,2]
[400718670,1767793271165,2009.46,0.00012765,2]
[400718671,1767793271188,164.36,0.00012765,2]
[400718672,1767793271348,2173.82,0.00013177,2]
[400718673,1767793272366,2173.82,0.00013589,2]
[400718674,1767793273121,2173.82,0.00014001,2]
[400718675,1767793273332,2173.82,0.00014413,2]
[400718676,1767793273498,1140.37,0.00014824,2]
[400718677,1767793273523,1033.45,0.00014824,2]
[400718678,1767793273688,2173.82,0.00015236,2]
[400718679,1767793273880,2173.82,0.00015648,2]
[400718680,1767793378106,-300.0,0.00015978,2]
[400718681,1767793383959,999.0,0.0001562,3]
[400718690,1767793600301,1000.0,0.00015796,2]
[400718691,1767793602512,361.59320567,0.00015829,2]
[400718692,1767793638587,3347.86,0.00032877,120]
[400718693,1767793653294,166.72269502,0.00032877,120]
[400718694,1767793684778,200.0,0.00015358,2]
[400718695,1767793687806,150.0,0.00015358,2]
[400718697,1767793793060,1161.85,0.00015402,2]
[400718698,1767793818179,1000.0,0.00015281,2]
[400718707,1767793831952,-271.90586894,0.00015977,2]
[400718736,1767793838113,-28.09413106,0.00015977,2]
[400718737,1767793838122,-300.0,0.00015977,2]
[400718738,1767793838132,-195.0,0.00015977,2]
[400718739,1767793838141,-300.0,0.00015977,2]
[400718740,1767793838151,-349.42202077,0.00015978,2]
[400718741,1767793838160,-195.0,0.00015978,2]
[400718742,1767793838170,-300.0,0.00015978,2]
[400718743,1767793838180,-1200.0,0.00015978,2]
[400718744,1767793838189,-300.0,0.00015978,2]
[400718745,1767793838199,-300.0,0.00015978,2]
[400718746,1767793838209,-1090.62620329,0.00015978,2]
[400718747,1767793838218,-41855.73,0.00015979,2]
[400718748,1767793838227,-550.0,0.00016055,2]
[400718750,1767793838237,-1000.0,0.00016056,2]
[400718752,1767793838246,-3372.104,0.00016095,2]
[400718754,1767793838255,-1000.0,0.00016095,2]
[400718755,1767793838264,-166.66,0.00016125,2]
[400718757,1767793838273,-1000.0,0.00016135,2]
[400718758,1767793838283,-1161.85,0.00016173,2]
[400718760,1767793838294,-500.0,0.00016187,2]
[400718761,1767793838303,-500.0,0.00016187,2]
[400718762,1767793838313,-500.0,0.00016187,2]
[400718763,1767793838322,-264.32172546,0.00016187,2]
[400718764,1767793838332,-1000.0,0.00016188,2]
[400718765,1767793838341,-744.27,0.00016188,2]
[400718767,1767793838352,-299.99,0.00016188,4]
[400718768,1767793838362,-2095.06,0.00016188,2]
[400718770,1767793838372,-1534.06,0.00016188,2]
[400718772,1767793838381,-4999.99,0.00016188,2]
[400718774,1767793838391,-337.15,0.00016188,2]
[400718775,1767793838401,-9999.99,0.00016188,2]
[400718776,1767793838411,-150.99,0.00016188,2]
[400718777,1767793838421,-4539.04,0.00016188,2]
[400718778,1767793838431,-9247.15,0.00016188,2]
[400718779,1767793838441,-1473.73,0.00016188,2]
[400718780,1767793838451,-20134.50299549,0.00016219,2]
[400718781,1767793838461,-1000.0,0.00016278,2]
[400718782,1767793838470,-1000.0,0.00016292,2]
[400718783,1767793838481,-300.0,0.000163,2]
[400718784,1767793838491,-1465.39,0.000163,2]
[400718785,1767793838501,-9999.99,0.000163,2]
[400718786,1767793838511,-9999.99,0.000163,2]
[400718787,1767793838521,-9999.99,0.000163,2]
[400718788,1767793838531,-999.99,0.000163,2]
[400718789,1767793838541,-19999.99,0.000163,2]
[400718790,1767793838551,-5907.01,0.000163,2]
[400718791,1767793838560,-150.99,0.000163,2]
[400718792,1767793838570,-500.0,0.00016325,2]
[400718793,1767793838580,-500.0,0.00016325,2]
[400718794,1767793838597,-500.0,0.00016325,2]
[400718795,1767793838606,-500.0,0.00016325,2]
[400718796,1767793838617,-610.79386728,0.00016325,2]
[400718797,1767793838627,-514.71165586,0.00016325,2]
[400718798,1767793838637,-530.37627741,0.00016325,2]
[400718799,1767793838647,-1000.0,0.00016325,2]
[400718800,1767793838657,-1000.0,0.00016335,2]
[400718801,1767793838667,-506.85863405,0.00016352,2]
[400718802,1767793838677,-500.0,0.00016438,2]
[400718803,1767793838687,-500.0,0.00016438,2]
[400718804,1767793838697,-500.0,0.00016438,2]
[400718805,1767793838706,-500.0,0.00016438,2]
[400718806,1767793838716,-500.0,0.00016438,2]
[400718807,1767793838726,-500.0,0.00016438,2]
[400718808,1767793838736,-478.36480999,0.00016438,2]
[400718809,1767793838748,-500.0,0.00016438,2]
[400718810,1767793838759,-500.0,0.00016438,2]
[400718811,1767793838769,-500.0,0.00016438,2]
[400718812,1767793838779,-500.0,0.00016438,2]
[400718813,1767793838789,-941.78607106,0.00016438,2]
[400718814,1767793838799,-941.78607106,0.00016438,2]
[400718815,1767793838808,-941.78607106,0.00016438,2]
[400718816,1767793838818,-941.78607106,0.00016438,2]
[400718817,1767793838830,-941.78607106,0.00016438,2]
[400718818,1767793838839,-941.78607106,0.00016438,2]
[400718819,1767793838849,-941.78607106,0.00016438,2]
[400718820,1767793838860,-941.78607106,0.00016438,2]
[400718821,1767793838869,-941.78607106,0.00016438,2]
[400718822,1767793838879,-941.78607106,0.00016438,2]
[400718823,1767793838889,-941.78607106,0.00016438,2]
[400718824,1767793838900,-941.78607106,0.00016438,2]
[400718825,1767793838909,-941.78607106,0.00016438,2]
[400718826,1767793838918,-941.78607106,0.00016438,2]
[400718827,1767793838927,-941.78607106,0.00016438,2]
[400718828,1767793838936,-941.78607106,0.00016438,2]
[400718829,1767793838946,-941.78607106,0.00016438,2]
[400718830,1767793838956,-941.78607106,0.00016438,2]
[400718831,1767793838965,-941.78607106,0.00016438,2]
[400718832,1767793838975,-941.78607106,0.00016438,2]
[400718833,1767793838984,-941.78607106,0.00016438,2]
[400718834,1767793838994,-941.78607106,0.00016438,2]
[400718835,1767793839004,-941.78607106,0.00016438,2]
[400718836,1767793839014,-941.78607106,0.00016438,2]
[400718837,1767793839024,-941.78607106,0.00016438,2]
[400718838,1767793839033,-941.78607106,0.00016438,2]
[400718839,1767793839042,-941.78607106,0.00016438,2]
[400718840,1767793839052,-941.78607106,0.00016438,2]
[400718841,1767793839062,-941.78607106,0.00016438,2]
[400718842,1767793839071,-941.78607106,0.00016438,2]
[400718843,1767793839081,-941.78607106,0.00016438,2]
[400718844,1767793839090,-941.78607106,0.00016438,2]
[400718845,1767793839099,-941.78607106,0.00016438,2]
[400718846,1767793839109,-941.78607106,0.00016438,2]
[400718847,1767793839119,-941.78607106,0.00016438,2]
[400718848,1767793839128,-941.78607106,0.00016438,2]
[400718849,1767793839138,-941.78607106,0.00016438,2]
[400718850,1767793839147,-941.78607106,0.00016438,2]
[400718851,1767793839156,-941.78607106,0.00016438,2]
[400718852,1767793839166,-941.78607106,0.00016438,2]
[400718853,1767793839175,-941.78607106,0.00016438,2]
[400718854,1767793839185,-941.78607106,0.00016438,2]
[400718855,1767793839194,-941.78607106,0.00016438,2]
[400718856,1767793839203,-941.78607106,0.00016438,2]
[400718857,1767793839212,-941.78607106,0.00016438,2]
[400718858,1767793839222,-941.78607106,0.00016438,2]
[400718859,1767793839233,-941.78607106,0.00016438,2]